bitfinex/quotes_BTCUSD_20220211
["timestamp","ask_amount","ask_price","bid_price","bid_amount"]
[1644611370429,0.30672551,42379.0,42378.0,0.00011537]
[1644611370729,0.63659902,42379.0,42378.0,0.00011537]
[1644611370930,0.63659902,42379.0,42373.0,1.5]
[1644611371172,0.35022551,42379.0,42376.0,0.00038456]
[1644611371373,0.0435,42379.0,42376.0,0.00038456]
[1644611371775,0.059043,42377.0,42376.0,0.00038456]
[1644611372184,0.43717459,42377.0,42373.0,1.5]
[1644611372374,0.34579853,42375.0,42374.0,0.00038458]
[1644611372673,0.6894358,42375.0,42374.0,0.00038458]
[1644611372873,0.6894358,42375.0,42374.0,0.00131352]
[1644611373073,0.93908663,42375.0,42374.0,0.00131352]
[1644611373275,0.94074311,42375.0,42374.0,0.00131352]
[1644611373476,0.99074311,42375.0,42374.0,0.00092894]
[1644611373675,0.94074311,42375.0,42374.0,0.00092894]
[1644611373878,0.44095501,42375.0,42374.0,0.00092894]
[1644611374076,0.04515648,42375.0,42374.0,0.00092894]
[1644611374936,0.04515648,42375.0,42374.0,0.21368582]
[1644611375226,0.00165648,42375.0,42374.0,0.21368582]
[1644611375636,0.00165648,42375.0,42374.0,0.56451047]
[1644611375828,0.00165648,42375.0,42374.0,0.8036413]
[1644611376130,0.00165648,42375.0,42374.0,0.8536413]
[1644611376330,0.00165648,42375.0,42374.0,0.9036413]
[1644611376527,0.00165648,42389.0,42374.0,0.9036413]
[1644611376729,0.00165648,42389.0,42382.0,0.39382968]
[1644611376927,0.00165648,42389.0,42387.0,0.24521214]
[1644611377142,0.05,42402.0,42387.0,0.24521214]
[1644611377143,0.05,42400.0,42390.0,0.329813]
[1644611377333,0.00038465,42398.0,42396.0,0.19166491]
[1644611377530,0.00038465,42398.0,42397.0,0.13913083]
[1644611377732,0.00153824,42408.0,42397.0,0.13913083]
[1644611377733,0.00179868,42408.0,42397.0,0.13913083]
[1644611377937,0.00179868,42408.0,42407.0,0.236274]
[1644611378129,0.00179868,42408.0,42407.0,0.33079574]
[1644611378130,0.00153824,42408.0,42407.0,0.33079574]
[1644611378336,0.058979,42420.0,42408.0,0.2574767]
[1644611378528,0.058979,42420.0,42408.0,0.3074767]
[1644611378529,0.00026044,42411.0,42408.0,0.3074767]
[1644611378781,0.00026044,42411.0,42408.0,0.4074767]
[1644611378990,0.167963,42423.0,42418.0,0.33079574]
[1644611378991,0.00026044,42419.0,42418.0,0.33079574]
[1644611379184,0.3852,42438.0,42419.0,0.40212662]
[1644611379185,0.00026044,42422.0,42419.0,0.40212662]
[1644611379385,0.058966,42433.0,42427.0,0.3471968]
[1644611379685,0.058966,42433.0,42427.0,0.3971968]
[1644611379686,0.00026199,42428.0,42427.0,0.3971968]
[1644611379985,0.058966,42432.0,42427.0,0.0589619]
[1644611380290,0.00026199,42432.0,42429.0,0.05]
[1644611380580,0.117923,42437.0,42427.0,0.0589619]
[1644611380581,0.03422299,42436.0,42428.0,0.05]
[1644611380785,0.03422299,42436.0,42428.0,0.33867747]
[1644611380982,0.00029122,42433.0,42428.0,0.73256678]
[1644611381180,0.00029122,42433.0,42428.0,0.39388931]
[1644611381782,0.058959,42435.0,42428.0,0.39388931]
[1644611381984,0.058959,42435.0,42432.0,0.19166491]
[1644611382182,0.00040892,42433.0,42429.0,0.62703178]
[1644611382451,0.00040892,42433.0,42429.0,0.05]
[1644611382645,0.00040892,42433.0,42428.0,0.44388931]
[1644611382844,0.05937492,42433.0,42431.0,0.24245476]
[1644611383044,0.117918,42441.0,42431.0,0.24245476]
[1644611383045,0.058956,42439.0,42431.0,0.24245476]
[1644611383242,0.226869,42442.0,42431.0,0.1679009]
[1644611383243,0.117911,42442.0,42431.0,0.1679009]
[1644611383442,0.00029164,42433.0,42431.0,0.05]
[1644611383843,0.05896,42437.0,42432.0,0.33079574]
[1644611384045,0.058954,42445.0,42438.0,0.13913083]
[1644611384345,0.058954,42445.0,42439.0,0.01513976]
[1644611384542,0.058954,42445.0,42439.0,0.05]
[1644611384953,0.058953,42442.0,42436.0,0.05]
[1644611385148,0.08469,42444.0,42431.0,0.1]
[1644611385149,0.058961,42439.0,42432.0,0.19166491]
[1644611385344,0.058961,42439.0,42431.0,0.13913083]
[1644611385946,0.058961,42439.0,42435.0,0.33075298]
[1644611386174,0.058961,42438.0,42435.0,0.33075298]
[1644611386375,0.058961,42438.0,42431.0,0.13913083]
[1644611386579,0.058961,42438.0,42430.0,0.19166491]
[1644611386778,0.058961,42438.0,42434.0,0.00040299]
[1644611386979,0.03486024,42436.0,42434.0,0.00040299]
[1644611387178,0.03486024,42435.0,42434.0,0.00040299]
[1644611387378,0.17825689,42435.0,42434.0,0.00040299]
[1644611387578,0.058983,42433.0,42428.0,1.21081926]
[1644611387880,0.117959,42430.0,42428.0,1.21081926]
[1644611388078,0.167959,42430.0,42428.0,1.21081926]
[1644611388477,0.50855393,42430.0,42428.0,1.21081926]
[1644611388677,0.0435,42429.0,42428.0,1.21081926]
[1644611388878,0.10248,42429.0,42428.0,1.21081926]
[1644611389479,0.07748,42429.0,42428.0,1.21081926]
[1644611389681,0.05898,42429.0,42428.0,1.21081926]
[1644611389940,0.11796,42433.0,42428.0,1.26081926]
[1644611390130,0.11796,42433.0,42429.0,0.01513976]
[1644611390331,0.11796,42433.0,42428.0,1.26081926]
[1644611390535,0.11796,42433.0,42431.0,0.32247637]
[1644611390732,0.058967,42432.0,42431.0,0.32247637]
[1644611390930,0.058967,42432.0,42428.0,1.26081926]
[1644611391130,0.07288121,42430.0,42428.0,1.21081926]
[1644611391332,0.117949,42430.0,42428.0,1.21081926]
[1644611391535,0.22145227,42438.0,42428.0,0.31335308]
[1644611391732,0.22145227,42438.0,42427.0,0.19166491]
[1644611391733,0.28856747,42437.0,42427.0,0.00039103]
[1644611391933,0.38206747,42437.0,42427.0,0.00039103]
[1644611392133,0.117961,42434.0,42427.0,0.00039103]
[1644611392331,0.176925,42431.0,42427.0,0.00039103]
[1644611392537,0.33877264,42430.0,42427.0,0.00039103]
[1644611392734,0.33877264,42430.0,42428.0,6.18e-05]
[1644611392933,0.36881648,42429.0,42428.0,6.18e-05]
[1644611393139,0.3451015,42429.0,42428.0,6.18e-05]
[1644611394590,0.4040765,42429.0,42428.0,6.18e-05]
[1644611395389,0.102475,42429.0,42428.0,6.18e-05]
[1644611395801,0.102475,42429.0,42428.0,0.01520156]
[1644611396091,0.058975,42431.0,42428.0,0.01520156]
[1644611396290,0.058975,42431.0,42428.0,6.18e-05]
[1644611396693,0.058975,42431.0,42430.0,0.37587284]
[1644611396895,0.117934,42435.0,42431.0,0.13913083]
[1644611396896,0.00026215,42434.0,42431.0,0.13913083]
[1644611397092,0.05896,42435.0,42430.0,0.42587284]
[1644611397093,0.05922215,42435.0,42430.0,0.42587284]
[1644611397300,0.05896,42435.0,42434.0,0.01513976]
[1644611397525,0.05896,42435.0,42434.0,0.06513976]
[1644611397722,0.05896,42435.0,42434.0,0.05]
[1644611397925,0.05896,42435.0,42431.0,0.05]
[1644611397926,0.117922,42435.0,42431.0,0.05]
[1644611398227,0.117922,42435.0,42421.0,0.3981]
[1644611398228,0.058961,42436.0,42415.0,0.01513976]
[1644611398229,0.06390924,42430.0,42415.0,0.01513976]
[1644611398429,0.058982,42427.0,42415.0,0.01513976]
[1644611398624,0.27620945,42426.0,42415.0,0.01513976]
[1644611398835,0.27620945,42426.0,42412.0,0.3944]
[1644611398836,0.0435,42425.0,42412.0,0.3944]
[1644611399029,0.45651759,42424.0,42414.0,0.34016988]
[1644611399223,0.45651759,42424.0,42412.0,0.79402525]
[1644611399224,0.0435,42423.0,42412.0,0.79402525]
[1644611399423,0.117977,42422.0,42412.0,0.79402525]
[1644611399627,0.161477,42421.0,42412.0,0.79402525]
[1644611399823,0.161477,42421.0,42412.0,0.39962525]
[1644611400024,0.161477,42421.0,42414.0,0.01513976]
[1644611400225,0.06420932,42418.0,42404.0,0.8197]
[1644611400433,0.06420932,42418.0,42403.0,0.11807326]
[1644611400434,0.44256956,42418.0,42403.0,0.0001]
[1644611400628,0.19649931,42408.0,42403.0,0.0001]
[1644611400830,0.19649931,42408.0,42403.0,0.00013263]
[1644611400831,0.03486024,42405.0,42403.0,0.00013263]
[1644611401035,0.0435,42404.0,42403.0,0.00013263]
[1644611401280,0.0435,42404.0,42403.0,0.00040178]
[1644611401482,0.0435,42404.0,42403.0,0.00053441]
[1644611402277,0.161555,42404.0,42403.0,0.00013263]
[1644611402477,0.27743267,42399.0,42395.0,0.0022]
[1644611402685,0.03486024,42397.0,42395.0,0.0022]
[1644611403079,0.0435,42396.0,42395.0,0.0022]
[1644611403280,0.0435,42396.0,42387.0,0.0011]
[1644611403479,0.03486024,42393.0,42387.0,0.0011]
[1644611403684,0.19644324,42392.0,42387.0,0.0011]
[1644611403880,0.161583,42392.0,42387.0,0.0011]
[1644611404089,0.211583,42392.0,42387.0,0.0011]
[1644611404279,0.161583,42392.0,42387.0,0.0011]
[1644611404482,0.05,42408.0,42395.0,0.20956838]
[1644611404680,0.05,42408.0,42398.0,0.01487612]
[1644611404681,0.059016,42401.0,42398.0,0.01487612]
[1644611404934,0.05,42408.0,42391.0,0.0011]
[1644611404935,0.0435,42400.0,42391.0,0.0011]
[1644611405129,0.0435,42400.0,42398.0,0.34526544]
[1644611405429,0.05,42408.0,42404.0,1.4565]
[1644611405631,0.505,42411.0,42404.0,1.4565]
[1644611405632,0.0435,42407.0,42404.0,1.4565]
[1644611405831,0.0435,42406.0,42404.0,1.4565]
[1644611406031,0.058997,42409.0,42404.0,1.45689776]
[1644611406235,0.117996,42412.0,42404.0,1.45689776]
[1644611406236,0.117996,42412.0,42405.0,1.0]
[1644611406432,0.00026215,42417.0,42411.0,0.01487612]
[1644611406632,0.00026215,42418.0,42411.0,0.01487612]
[1644611406830,0.00026215,42424.0,42423.0,0.19857212]
[1644611407035,0.89458256,42425.0,42424.0,0.329813]
[1644611407235,0.89458256,42425.0,42424.0,0.67103144]
[1644611407429,0.89458256,42425.0,42424.0,0.44121844]
[1644611407636,0.05,42439.0,42436.0,0.13913083]
[1644611407637,0.00026215,42438.0,42436.0,0.13913083]
[1644611407839,0.00026322,42446.0,42438.0,0.329813]
[1644611408037,0.02002413,42467.0,42445.0,0.20654103]
[1644611408231,0.02002413,42467.0,42452.0,0.01487612]
[1644611408232,0.05,42461.0,42452.0,0.01487612]
[1644611408443,0.05,42461.0,42450.0,0.18913083]
[1644611408684,0.27619686,42454.0,42450.0,0.18913083]
[1644611408892,0.31132074,42454.0,42441.0,0.3971]
[1644611409088,0.31132074,42454.0,42450.0,0.02996212]
[1644611409089,0.33514086,42454.0,42450.0,0.02996212]
[1644611409290,0.058948,42453.0,42450.0,0.02996212]
[1644611410286,0.117904,42452.0,42450.0,0.02996212]
[1644611411085,0.33662699,42451.0,42450.0,0.02996212]
[1644611411985,0.117904,42452.0,42450.0,0.02996212]
[1644611412188,0.11833065,42453.0,42451.0,0.39824546]
[1644611412438,0.05938265,42453.0,42450.0,0.02996212]
[1644611412625,0.00012961,42452.0,42450.0,0.02996212]
[1644611413326,0.00012961,42452.0,42450.0,0.40892969]
[1644611413528,0.00012961,42452.0,42451.0,0.20654103]
[1644611413726,0.00012961,42452.0,42451.0,0.25654103]
[1644611413926,9.61e-06,42452.0,42451.0,0.25654103]
[1644611414130,9.61e-06,42452.0,42451.0,0.28650315]
[1644611414433,0.01,42469.0,42464.0,0.13913083]
[1644611414628,0.01,42469.0,42465.0,0.31528023]
[1644611414826,0.01,42469.0,42466.0,0.01487612]
[1644611415227,0.01,42469.0,42453.0,0.01487612]
[1644611415228,0.34231322,42467.0,42453.0,0.01487612]
[1644611415435,0.30718934,42467.0,42451.0,0.05992424]
[1644611415628,0.058933,42464.0,42451.0,0.05992424]
[1644611415827,0.058933,42464.0,42455.0,0.01487612]
[1644611416029,0.02002413,42467.0,42455.0,0.01487612]
[1644611416272,0.02002413,42467.0,42458.0,0.32959154]
[1644611416775,0.058927,42464.0,42458.0,0.32959154]
[1644611417173,0.30103323,42462.0,42451.0,0.05992424]
[1644611417374,0.3,42464.0,42451.0,0.05992424]
[1644611417773,0.11829528,42465.0,42451.0,0.05992424]
[1644611417974,0.31786066,42467.0,42458.0,0.01487612]
[1644611417975,0.058928,42463.0,42458.0,0.01487612]
[1644611418178,0.02002413,42467.0,42458.0,0.01487612]
[1644611418179,0.02002413,42467.0,42462.0,0.01487612]
[1644611418372,0.00124598,42466.0,42465.0,0.33079574]
[1644611418574,0.00124598,42466.0,42465.0,0.06487612]
[1644611418775,0.00124598,42466.0,42465.0,0.05]
[1644611418975,0.0870406,42466.0,42459.0,0.01487612]
[1644611419174,0.0870406,42466.0,42456.0,0.19166491]
[1644611419175,0.3,42465.0,42456.0,0.05]
[1644611419377,0.02002413,42467.0,42462.0,0.02996212]
[1644611419775,0.02002413,42467.0,42463.0,0.32507893]
[1644611420029,0.02002413,42467.0,42464.0,0.39751848]
[1644611420428,0.02002413,42467.0,42463.0,0.32507893]
[1644611420831,0.00043655,42468.0,42463.0,0.32507893]
[1644611421030,0.00174592,42474.0,42467.0,1.05]
[1644611421233,0.00075504,42477.0,42473.0,0.01487612]
[1644611421434,0.00075504,42477.0,42476.0,0.13913083]
[1644611421629,0.00075504,42477.0,42476.0,0.34567186]
[1644611421830,0.00075504,42477.0,42476.0,1.06518737]
[1644611422039,0.00075504,42477.0,42476.0,1.11518737]
[1644611422234,0.00075504,42477.0,42476.0,1.06518737]
[1644611423030,0.00075504,42477.0,42476.0,0.44567186]
[1644611423240,0.00075504,42477.0,42469.0,0.3966]
[1644611423431,0.00075504,42477.0,42470.0,0.01487612]
[1644611424077,0.00075504,42477.0,42475.0,0.26573975]
[1644611424278,0.00043823,42476.0,42475.0,0.26573975]
[1644611424485,0.00043823,42476.0,42475.0,0.66141161]
[1644611424687,0.3,42488.0,42475.0,0.66141161]
[1644611424688,0.2988848,42496.0,42477.0,1.05]
[1644611424887,0.05030736,42502.0,42495.0,0.01487612]
[1644611425096,0.70591,42501.0,42490.0,0.01487612]
[1644611425288,0.01446684,42495.0,42490.0,0.29325873]
[1644611425484,0.01446684,42495.0,42494.0,0.34567186]
[1644611425780,0.01446684,42495.0,42494.0,0.44567186]
[1644611426382,0.00030736,42502.0,42500.0,0.34388342]
[1644611426584,0.00030736,42502.0,42501.0,0.20654103]
[1644611426781,0.05,42510.0,42501.0,0.01487612]
[1644611426982,0.05,42510.0,42500.0,0.97954873]
[1644611426983,0.00061472,42506.0,42500.0,0.97954873]
[1644611427185,0.00061472,42506.0,42505.0,0.01487612]
[1644611427932,0.00061472,42506.0,42501.0,0.1]
[1644611428137,0.00061472,42506.0,42498.0,0.19166491]
[1644611428533,0.31296132,42505.0,42489.0,0.3]
[1644611428835,0.25409032,42505.0,42483.0,0.24488949]
[1644611429032,0.03512388,42498.0,42483.0,0.24488949]
[1644611429231,0.01920426,42504.0,42483.0,0.24488949]
[1644611429232,0.117768,42500.0,42483.0,0.24488949]
[1644611429431,0.117762,42502.0,42495.0,0.3715415]
[1644611429632,0.00061472,42502.0,42495.0,0.3715415]
[1644611429838,0.00061472,42502.0,42484.0,0.3]
[1644611429839,0.05949272,42502.0,42484.0,0.3]
[1644611430035,0.05949272,42502.0,42498.0,0.02996212]
[1644611430231,0.0003068,42501.0,42498.0,0.02996212]
[1644611430431,0.34551699,42501.0,42500.0,0.02996212]
[1644611430632,0.0591828,42501.0,42500.0,0.02996212]
[1644611431282,0.00061472,42502.0,42500.0,0.74711311]
[1644611431480,0.00061472,42502.0,42501.0,0.00091353]
[1644611434381,0.69455797,42502.0,42501.0,0.00091353]
[1644611434584,0.99455797,42502.0,42501.0,0.00091353]
[1644611434779,0.73805797,42502.0,42501.0,0.00091353]
[1644611435033,0.53673368,42502.0,42501.0,0.00091353]
[1644611435231,0.04411472,42502.0,42501.0,0.00091353]
[1644611435441,0.117758,42506.0,42501.0,0.00091353]
[1644611435442,0.03894461,42514.0,42503.0,0.1416]
[1644611435641,0.004,42522.0,42514.0,0.13913083]
[1644611435837,0.03536868,42540.0,42514.0,1.05]
[1644611436032,0.3841776,42533.0,42522.0,0.34567186]
[1644611436331,0.3841776,42533.0,42520.0,0.56230943]
[1644611436332,0.05,42533.0,42520.0,0.56230943]
[1644611436532,0.058836,42530.0,42520.0,0.3547827]
[1644611436731,0.05,42533.0,42522.0,0.20654103]
[1644611437332,0.16085112,42532.0,42523.0,1.05]
[1644611437536,0.00030525,42525.0,42521.0,0.19166491]
[1644611437734,0.00030525,42525.0,42520.0,0.45]
[1644611437937,0.06950829,42526.0,42520.0,0.45]
[1644611437938,0.04481354,42526.0,42520.0,0.45]
[1644611438135,0.0004296,42528.0,42520.0,0.45]
[1644611438532,0.0004296,42528.0,42523.0,0.36849893]
[1644611438799,0.0004296,42528.0,42514.0,0.43913083]
[1644611439002,0.03512388,42520.0,42506.0,0.33079574]
[1644611439202,0.0004296,42528.0,42495.0,0.408]
[1644611439398,0.0004296,42528.0,42506.0,0.33079574]
[1644611439599,0.0004296,42528.0,42495.0,0.3645]
[1644611439600,0.03634212,42528.0,42502.0,0.26808745]
[1644611439800,0.33684165,42516.0,42513.0,0.00013571]
[1644611440206,0.058847,42525.0,42515.0,0.15400695]
[1644611440408,0.226562,42533.0,42514.0,1.24166491]
[1644611440409,0.0008592,42528.0,42524.0,0.01487612]
[1644611440703,0.15171032,42532.0,42520.0,0.02996212]
[1644611440903,0.15171032,42532.0,42527.0,0.2813296]
[1644611441100,0.15171032,42532.0,42526.0,0.02996212]
[1644611442100,0.44276312,42532.0,42526.0,0.02996212]
[1644611442303,0.00030456,42531.0,42526.0,0.02996212]
[1644611442540,0.00030456,42531.0,42522.0,0.00189724]
[1644611442541,0.08023568,42527.0,42522.0,0.00189724]
[1644611442744,0.03512388,42523.0,42522.0,0.00189724]
[1644611443139,0.08512388,42527.0,42513.0,0.16352427]
[1644611443338,0.05885,42523.0,42513.0,0.16352427]
[1644611443537,0.33111145,42520.0,42513.0,0.37995194]
[1644611443739,0.33111145,42520.0,42513.0,0.16352427]
[1644611443941,0.33111145,42520.0,42502.0,0.3]
[1644611444140,0.33111145,42520.0,42494.0,0.3]
[1644611444141,0.08581461,42508.0,42494.0,0.3]
[1644611444347,0.0435,42507.0,42497.0,0.01487612]
[1644611444542,0.33111145,42520.0,42494.0,0.3]
[1644611444543,0.0435,42506.0,42494.0,0.3]
[1644611444741,0.05,42518.0,42503.0,0.22902236]
[1644611444742,0.0435,42508.0,42503.0,0.22902236]
[1644611444940,0.0435,42508.0,42504.0,0.01487612]
[1644611445544,0.0435,42508.0,42499.0,0.00044047]
[1644611445747,0.0435,42508.0,42492.0,0.3985]
[1644611445748,0.06885227,42495.0,42492.0,0.3985]
[1644611445947,0.06885227,42495.0,42483.0,0.11773978]
[1644611445948,0.08717927,42488.0,42483.0,0.11773978]
[1644611446189,0.03512388,42494.0,42488.0,0.17435853]
[1644611446384,0.05,42498.0,42488.0,0.17435853]
[1644611446385,0.0435,42493.0,42488.0,0.17435853]
[1644611446588,0.0435,42492.0,42489.0,0.39576153]
[1644611446783,0.33469901,42497.0,42489.0,0.39576153]
[1644611446784,0.0435,42491.0,42489.0,0.39576153]
[1644611447183,0.0395,42491.0,42489.0,0.39576153]
[1644611447384,0.0395,42491.0,42490.0,0.3545054]
[1644611448486,0.0395,42491.0,42488.0,0.17435853]
[1644611448685,0.40391752,42495.0,42488.0,0.17435853]
[1644611449088,0.45880352,42495.0,42488.0,0.17435853]
[1644611449286,0.058886,42493.0,42488.0,0.17435853]
[1644611449486,0.40391752,42495.0,42489.0,0.00044016]
[1644611450538,0.40391752,42495.0,42488.0,0.17435853]
[1644611450738,0.69986972,42495.0,42490.0,0.00044016]
[1644611450935,0.40391752,42495.0,42490.0,0.00044016]
[1644611451137,0.40391752,42495.0,42490.0,0.00222683]
[1644611451138,0.03512388,42491.0,42490.0,0.00222683]
[1644611451337,0.65,42490.0,42476.0,0.0011]
[1644611451541,0.07455451,42480.0,42476.0,0.0011]
[1644611451740,0.38433011,42479.0,42476.0,0.0011]
[1644611451937,0.39351473,42467.0,42461.0,0.01]
[1644611452136,0.66440609,42479.0,42462.0,0.20563788]
[1644611452137,0.0435,42466.0,42462.0,0.20563788]
[1644611452338,0.0435,42465.0,42462.0,0.20563788]
[1644611452540,0.0435,42464.0,42462.0,0.20563788]
[1644611452942,0.0435,42464.0,42462.0,0.0011]
[1644611453541,0.00026701,42473.0,42462.0,0.0511]
[1644611453785,0.865852,42494.0,42472.0,0.01487612]
[1644611453786,0.00026701,42474.0,42472.0,0.01487612]
[1644611453987,0.0435,42476.0,42472.0,0.01487612]
[1644611454186,0.04376701,42476.0,42472.0,0.01487612]
[1644611454387,0.04376701,42476.0,42462.0,0.0511]
[1644611454388,0.0435,42476.0,42475.0,0.25948458]
[1644611454983,0.00026701,42479.0,42475.0,0.25948458]
[1644611455184,0.04376701,42484.0,42475.0,0.25948458]
[1644611455388,0.0435,42484.0,42480.0,0.28127414]
[1644611455586,0.0435,42484.0,42475.0,0.25992445]
[1644611455984,0.0435,42484.0,42475.0,0.24504833]
[1644611456186,0.04376701,42484.0,42475.0,0.24504833]
[1644611456387,0.07068267,42482.0,42475.0,0.00043987]
[1644611456688,0.03512388,42479.0,42478.0,0.00165103]
[1644611456887,0.0435,42479.0,42478.0,0.00165103]
[1644611457085,0.07862388,42479.0,42478.0,0.00165103]
[1644611457451,0.49644688,42479.0,42478.0,0.00165103]
[1644611457643,0.49644688,42479.0,42462.0,0.0011]
[1644611457644,0.06879522,42465.0,42462.0,0.0011]
[1644611457845,0.058922,42472.0,42462.0,0.0011]
[1644611458444,0.32147114,42469.0,42462.0,0.0011]
[1644611458641,0.058922,42472.0,42462.0,0.0011]
[1644611458843,0.05866275,42472.0,42462.0,0.35479484]
[1644611459244,0.058921,42467.0,42463.0,0.00043934]
[1644611460146,0.058921,42467.0,42462.0,0.0011]
[1644611460445,0.058921,42467.0,42463.0,0.00043934]
[1644611460647,0.058921,42467.0,42465.0,0.31477618]
[1644611460845,0.10242039,42477.0,42463.0,0.00043934]
[1644611460846,0.0435,42477.0,42463.0,0.00043934]
[1644611461050,0.0435,42477.0,42465.0,0.27327679]
[1644611461282,0.00026701,42479.0,42469.0,0.01487612]
[1644611461483,0.00026701,42480.0,42475.0,0.36284766]
[1644611461680,0.31581908,42483.0,42472.0,0.01487612]
[1644611461882,0.00026701,42480.0,42472.0,0.01487612]
[1644611462080,0.058904,42479.0,42472.0,0.21060261]
[1644611462281,0.49279909,42483.0,42468.0,0.00043933]
[1644611462282,0.08019559,42481.0,42468.0,0.00043933]
[1644611462483,0.07262478,42467.0,42462.0,0.0011]
[1644611462686,0.38625304,42466.0,42462.0,0.0011]
[1644611462887,0.03512388,42464.0,42444.0,0.3747]
[1644611463085,0.03512388,42464.0,42441.0,0.0111]
[1644611463086,0.06897531,42453.0,42441.0,0.0111]
[1644611463285,0.07862388,42452.0,42441.0,0.0111]
[1644611463483,0.07789169,42443.0,42441.0,0.0111]
[1644611463687,0.12139169,42443.0,42441.0,0.0111]
[1644611464080,0.102469,42443.0,42441.0,0.0111]
[1644611464282,0.152469,42443.0,42441.0,0.0111]
[1644611464481,0.102469,42443.0,42441.0,0.0111]
[1644611464683,1.08512388,42442.0,42435.0,0.0011]
[1644611464941,0.3435,42441.0,42435.0,0.0011]
[1644611465235,0.0858151,42437.0,42435.0,0.0011]
[1644611465433,0.0435,42436.0,42435.0,0.0011]
[1644611465834,0.0435,42436.0,42431.0,0.00132868]
[1644611466040,0.0435,42436.0,42435.0,0.329813]
[1644611466240,0.0435,42436.0,42431.0,0.00132868]
[1644611466833,0.29944691,42434.0,42431.0,0.00132868]
[1644611467537,0.058961,42435.0,42431.0,0.00132868]
[1644611467838,0.0435,42444.0,42431.0,0.00132868]
[1644611468039,0.0435,42444.0,42432.0,0.33170184]
[1644611468436,0.31339971,42440.0,42432.0,0.72947185]
[1644611468676,0.05896106,42438.0,42432.0,0.72947185]
[1644611468878,0.05896106,42438.0,42436.0,0.00043797]
[1644611469280,0.11791906,42438.0,42436.0,0.00043797]
[1644611469879,0.11791906,42438.0,42431.0,0.00132868]
[1644611469880,0.058968,42437.0,42431.0,0.00132868]
[1644611470081,0.058968,42437.0,42435.0,0.00043798]
[1644611470283,0.117931,42436.0,42435.0,0.00043798]
[1644611470782,0.167931,42436.0,42431.0,0.00089666]
[1644611470980,0.09410093,42433.0,42431.0,6.66e-06]
[1644611471182,0.102487,42432.0,42418.0,0.0022]
[1644611471386,0.102487,42432.0,42419.0,0.01487612]
[1644611471582,0.117962,42431.0,42419.0,0.01487612]
[1644611471779,0.102477,42432.0,42420.0,0.01487612]
[1644611471979,0.102477,42432.0,42423.0,0.18651437]
[1644611472443,0.102477,42432.0,42420.0,0.01487612]
[1644611472641,0.102477,42432.0,42418.0,0.0022]
[1644611472838,0.102477,42432.0,42428.0,0.38487024]
[1644611472839,0.058977,42432.0,42428.0,0.38487024]
[1644611473135,0.058977,42432.0,42418.0,0.3022]
[1644611473338,0.058977,42432.0,42421.0,0.02487612]
[1644611473536,0.058977,42432.0,42426.0,0.34839926]
[1644611473836,0.058977,42432.0,42421.0,0.02487612]
[1644611474039,0.058977,42432.0,42421.0,0.01]
[1644611474237,0.058977,42432.0,42423.0,0.01487612]
[1644611474538,0.0589576,42437.0,42431.0,0.01487612]
[1644611474737,0.0589576,42437.0,42427.0,0.37474474]
[1644611474939,0.05,42443.0,42436.0,0.01487612]
[1644611475137,0.1179068,42447.0,42436.0,0.01487612]
[1644611475339,0.35454065,42439.0,42436.0,0.01487612]
[1644611475736,0.35454065,42439.0,42434.0,0.05]
[1644611476181,0.11792,42444.0,42433.0,0.31722558]
[1644611476381,0.25031402,42444.0,42433.0,0.1]
[1644611476584,0.058958,42438.0,42433.0,0.05]
[1644611476783,0.058958,42438.0,42429.0,0.00144806]
[1644611477182,0.058958,42438.0,42433.0,0.01487612]
[1644611477581,0.3672979,42436.0,42433.0,0.27028477]
[1644611477981,0.3672979,42436.0,42433.0,0.01487612]
[1644611478182,0.3672979,42436.0,42416.0,0.29411752]
[1644611478382,0.3672979,42436.0,42417.0,0.10249228]
[1644611478584,0.058962,42435.0,42417.0,0.10324387]
[1644611478785,0.3672979,42436.0,42435.0,0.17688599]
[1644611479188,0.3672979,42436.0,42435.0,0.22688599]
[1644611479385,0.00044549,42436.0,42435.0,0.22688599]
[1644611479587,0.00044549,42436.0,42435.0,0.22515204]
[1644611480641,0.29596102,42452.0,42435.0,0.22515204]
[1644611480642,0.05,42456.0,42436.0,1.379813]
[1644611480837,0.05,42456.0,42444.0,0.2]
[1644611480838,0.00030544,42454.0,42444.0,0.2]
[1644611481038,0.00030544,42454.0,42445.0,0.0435]
[1644611481245,0.05,42471.0,42448.0,0.05]
[1644611481442,0.05,42471.0,42446.0,0.529813]
[1644611481443,0.001,42475.0,42449.0,0.3435]
[1644611481636,0.08566592,42457.0,42450.0,0.0435]
[1644611481843,0.30570899,42470.0,42450.0,0.0435]
[1644611481844,0.07260548,42456.0,42450.0,0.0435]
[1644611482035,0.07260548,42456.0,42447.0,0.05]
[1644611482236,0.07260548,42456.0,42444.0,0.68043738]
[1644611482435,0.05,42467.0,42446.0,0.05]
[1644611482634,0.108923,42467.0,42455.0,0.31690994]
[1644611482841,0.39781241,42461.0,42452.0,0.31370745]
[1644611483038,0.39781241,42461.0,42449.0,0.05]
[1644611483239,0.05,42457.0,42447.0,0.05]
[1644611483437,0.39781241,42461.0,42447.0,0.05]
[1644611483690,0.00030533,42463.0,42443.0,0.0435]
[1644611483888,0.00030533,42463.0,42443.0,0.42881024]
[1644611484087,0.00030533,42463.0,42454.0,0.23397115]
[1644611484290,0.31669522,42469.0,42454.0,0.28397115]
[1644611484496,0.05,42470.0,42459.0,1.05]
[1644611484697,0.002,42476.0,42463.0,0.35]
[1644611484891,0.002,42476.0,42464.0,0.679813]
[1644611485092,0.002,42476.0,42464.0,0.05]
[1644611485291,0.002,42476.0,42464.0,0.2]
[1644611485490,0.002,42476.0,42471.0,0.19470945]
[1644611485690,0.002,42476.0,42474.0,0.29100526]
[1644611485896,0.002,42476.0,42474.0,0.72398581]
[1644611486090,0.002,42476.0,42471.0,0.15]
[1644611486290,0.002,42476.0,42472.0,0.329813]
[1644611486490,0.002,42476.0,42471.0,0.05]
[1644611486696,0.002,42476.0,42464.0,0.0435]
[1644611486697,0.05,42473.0,42464.0,0.0435]
[1644611486892,0.34801573,42472.0,42464.0,0.0435]
[1644611487096,0.05,42473.0,42464.0,0.0435]
[1644611487291,0.06772693,42467.0,42464.0,0.0435]
[1644611487543,0.00243649,42476.0,42464.0,0.0435]
[1644611487544,0.00243649,42476.0,42465.0,0.65970694]
[1644611487740,0.00243649,42476.0,42465.0,0.32989394]
[1644611487940,0.002,42476.0,42465.0,0.42989394]
[1644611488139,0.002,42476.0,42467.0,0.27963203]